lending/lending_fUSD_20240710
["ID","MTS","AMOUNT","RATE_DAILY","PERIOD"]
[331592424,1720570262461,-2648.12,0.00013997,2]
[331592425,1720570262471,-500.0,0.00013997,2]
[331592426,1720570262481,-500.0,0.00013997,2]
[331592427,1720570262490,-1088.66,0.00013997,2]
[331592428,1720570262499,-4149.85,0.00013997,2]
[331592429,1720570262509,-1107.61,0.00013997,2]
[331592430,1720570262518,-500.0,0.00013997,2]
[331592431,1720570262527,-524.66,0.00013997,2]
[331592432,1720570262537,-2712.16,0.00013997,2]
[331592433,1720570262546,-1581.37,0.00013997,2]
[331592434,1720570262556,-500.0,0.00013997,2]
[331592435,1720570262566,-980.42,0.00013997,2]
[331592436,1720570262575,-638.65,0.00013997,2]
[331592437,1720570262585,-500.0,0.00013997,2]
[331592438,1720570262594,-500.0,0.00013997,2]
[331592439,1720570262604,-1674.31,0.00013997,2]
[331592440,1720570262613,-500.0,0.00013997,2]
[331592441,1720570262622,-3885.15,0.00013997,2]
[331592442,1720570262632,-1299.58,0.00013997,2]
[331592443,1720570262642,-1497.8,0.00013997,2]
[331592444,1720570262652,-3043.85,0.00013997,2]
[331592445,1720570262661,-500.0,0.00013997,2]
[331592446,1720570262671,-3365.96,0.00013997,2]
[331592447,1720570262681,-500.0,0.00013997,2]
[331592448,1720570262691,-4274.91,0.00013997,2]
[331592449,1720570262700,-913.69,0.00013997,2]
[331592450,1720570262711,-1886.31,0.00013997,2]
[331592451,1720570262722,-500.0,0.00013997,2]
[331592452,1720570262732,-500.0,0.00013997,2]
[331592453,1720570262742,-500.0,0.00013997,2]
[331592454,1720570262752,-3723.01,0.00013997,2]
[331592455,1720570262761,-3269.98,0.00013997,2]
[331592456,1720570262771,-500.0,0.00013997,2]
[331592457,1720570262781,-593.39,0.00013997,2]
[331592458,1720570262791,-500.0,0.00013997,2]
[331592459,1720570262910,-1908.11,0.00013997,2]
[331592460,1720570262920,-1088.11,0.00013997,2]
[331592461,1720570262929,-4262.1,0.00013997,2]
[331592462,1720570262939,-1009.7,0.00013997,2]
[331592463,1720570262948,-500.0,0.00013997,2]
[331592464,1720570262957,-500.0,0.00013997,2]
[331592465,1720570262966,-500.0,0.00013997,2]
[331592466,1720570262977,-1497.09,0.00013997,2]
[331592467,1720570262988,-596.29,0.00013997,2]
[331592468,1720570262998,-500.0,0.00013997,2]
[331592469,1720570263007,-500.0,0.00013997,2]
[331592470,1720570263017,-500.0,0.00013997,2]
[331592471,1720570263027,-500.0,0.00013997,2]
[331592472,1720570263037,-500.0,0.00013997,2]
[331592473,1720570263048,-1599.87,0.00013997,2]
[331592474,1720570263059,-1890.44,0.00013997,2]
[331592475,1720570263068,-984.48,0.00013997,2]
[331592476,1720570263079,-687.74,0.00013997,2]
[331592477,1720570263092,-5089.54,0.00013997,2]
[331592478,1720570263103,-3773.69,0.00013997,2]
[331592479,1720570263113,-500.0,0.00013997,2]
[331592480,1720570263123,-500.0,0.00013997,2]
[331592481,1720570263133,-500.0,0.00013997,2]
[331592482,1720570263143,-170.13929706,0.00013997,2]
[331592483,1720570263152,-967.21,0.00013997,2]
[331592484,1720570263162,-1871.32,0.00013997,2]
[331592485,1720570263171,-500.0,0.00013997,2]
[331592486,1720570263181,-500.0,0.00013997,2]
[331592487,1720570263190,-500.0,0.00013997,2]
[331592488,1720570263200,-773.25,0.00013997,2]
[331592489,1720570263210,-1431.22,0.00013997,2]
[331592490,1720570263219,-3622.99,0.00013997,2]
[331592491,1720570263233,-4141.03,0.00013997,2]
[331592492,1720570263242,-744.39,0.00013997,2]
[331592493,1720570263252,-501.6823947,0.00013997,2]
[331592494,1720570263265,-1313.25,0.00013997,2]
[331592495,1720570263275,-500.0,0.00013997,2]
[331592496,1720570263284,-874.96,0.00013997,2]
[331592497,1720570263294,-156.04535864,0.00013997,2]
[331592498,1720570263303,-4215.18431058,0.00013997,2]
[331592499,1720570265872,-174.51327,0.00013774,2]
[331592500,1720570265882,-151.0,0.00013898,2]
[331592501,1720570265892,-151.0,0.00013898,2]
[331592502,1720570265902,-84.04673,0.00013898,2]
[331592503,1720570268520,-151.0,0.00013873,2]
[331592504,1720570268530,-66.95327,0.00013898,2]
[331592505,1720570268540,-125.61426622,0.00013898,2]
[331592506,1720570268627,-25.38573378,0.00013898,2]
[331592507,1720570268636,-151.0,0.00013898,2]
[331592508,1720570268646,-151.0,0.00013898,2]
[331592509,1720570268655,-76.103348,0.00013898,2]
[331592510,1720570275366,-2356.12,0.00013999,20]
[331592511,1720570275396,-9682.6,0.00013999,20]
[331592512,1720570275425,-695.33,0.00013999,20]
[331592513,1720570289004,-9682.6,0.0001405,21]
[331592514,1720570289033,-9682.6,0.0001405,21]
[331592515,1720570289061,-9682.6,0.0001405,21]
[331592516,1720570289091,-9682.6,0.0001405,21]
[331592517,1720570289123,-9682.61632536,0.0001405,21]
[331592518,1720570289166,-2356.12,0.00014051,21]
[331592519,1720570289194,-2356.12,0.00014051,21]
[331592520,1720570289221,-2356.12,0.00014051,21]
[331592521,1720570289248,-2356.12,0.00014051,21]
[331592522,1720570289276,-2356.34263159,0.00014051,21]
[331592523,1720570289308,-695.33,0.00014051,21]
[331592524,1720570289334,-695.33,0.00014051,21]
[331592525,1720570289362,-695.33,0.00014051,21]
[331592526,1720570289388,-695.33,0.00014051,21]
[331592527,1720570289416,-695.39930043,0.00014051,21]
[331592528,1720570289464,-1717.24,0.00014052,20]
[331592529,1720570289491,-1717.24,0.00014052,21]
[331592530,1720570289519,-1717.24,0.00014052,21]
[331592531,1720570289546,-1717.24,0.00014052,21]
[331592532,1720570289572,-1717.24,0.00014052,21]
[331592533,1720570289598,-1717.30071884,0.00014052,21]
[331592534,1720570289636,-1478.03,0.00014053,20]
[331592535,1720570289662,-1478.03,0.00014053,21]
[331592536,1720570289689,-1478.03,0.00014053,21]
[331592537,1720570289716,-1478.03,0.00014053,21]
[331592538,1720570289745,-1478.03,0.00014053,21]
[331592539,1720570289774,-1478.06809014,0.00014053,21]
[331592540,1720570289850,-1153.25,0.00014107,20]
[331592541,1720570289881,-590.47,0.00014107,20]
[331592542,1720570289909,-1915.74,0.00014107,20]
[331592543,1720570289942,-559.0,0.00014107,20]
[331592544,1720570289982,-1153.25,0.00014108,21]
[331592545,1720570290010,-1153.25,0.00014108,21]
[331592546,1720570290037,-1153.25,0.00014108,21]
[331592547,1720570290066,-1153.25,0.00014108,21]
[331592548,1720570290097,-1153.31494592,0.00014108,21]
[331592549,1720570290129,-590.47,0.00014108,21]
[331592550,1720570290158,-590.47,0.00014108,21]
[331592551,1720570290188,-590.47,0.00014108,21]
[331592552,1720570290216,-590.47,0.00014108,21]
[331592553,1720570290247,-590.56249502,0.00014108,21]
[331592554,1720570290276,-1915.74,0.00014108,21]
[331592555,1720570290305,-1915.74,0.00014108,21]
[331592556,1720570290333,-1915.74,0.00014108,21]
[331592557,1720570290361,-1915.74,0.00014108,21]
[331592558,1720570290388,-1915.85341074,0.00014108,21]
[331592559,1720570290418,-559.0,0.00014108,21]
[331592560,1720570290445,-559.0,0.00014108,21]
[331592561,1720570290472,-559.0,0.00014108,21]
[331592562,1720570290500,-559.0,0.00014108,21]
[331592563,1720570290527,-559.10611457,0.00014108,21]
[331592564,1720570291379,-2413.74,0.00014981,20]
[331592565,1720570291408,-2612.17,0.00014981,20]
[331592566,1720570291436,-1425.56,0.00014981,20]
[331592567,1720570291464,-2645.77,0.00014981,20]
[331592568,1720570291491,-514.37,0.00014981,20]
[331592569,1720570291521,-525.85,0.00014981,20]
[331592570,1720570291548,-682.26,0.00014981,20]
[331592571,1720570291576,-1921.64,0.00014981,20]
[331592572,1720570291604,-1005.24193478,0.00014981,20]
[331592573,1720570291787,-731.86806522,0.00014981,20]
[331592574,1720570291798,-858.28,0.00014981,20]
[331592575,1720570291808,-2482.09,0.00014981,20]
[331592576,1720570291818,-3859.44,0.00014981,20]
[331592577,1720570291827,-886.22,0.00014981,20]
[331592578,1720570291836,-864.70193478,0.00014981,20]
[331592579,1720570292045,-5088.94806522,0.00014981,20]
[331592580,1720570292055,-2281.94,0.00014981,20]
[331592581,1720570292064,-500.0,0.00014981,20]
[331592582,1720570292076,-500.0,0.00014981,20]
[331592583,1720570292090,-1311.71193478,0.00014981,20]
[331592584,1720570293299,-1789.23806522,0.00014981,20]
[331592585,1720570293309,-4580.62,0.00014981,20]
[331592586,1720570293318,-3312.74193478,0.00014981,20]
[331592587,1720570293442,-559.22806522,0.00014981,20]
[331592588,1720570293451,-1880.0,0.00014981,20]
[331592589,1720570293460,-818.57,0.00014981,20]
[331592590,1720570293470,-2694.61,0.00014981,20]
[331592591,1720570293478,-2018.71,0.00014981,20]
[331592592,1720570293488,-1711.48193478,0.00014981,20]
[331592593,1720570293614,-996.75806522,0.00014981,20]
[331592594,1720570293624,-611.09,0.00014981,20]
[331592595,1720570293633,-4692.42,0.00014981,20]
[331592596,1720570293642,-1099.92,0.00014981,20]
[331592597,1720570293651,-2282.42826014,0.00014981,20]
[331592598,1720570293860,-1046.89173986,0.00014981,20]
[331592599,1720570293869,-1261.7,0.00014981,20]
[331592600,1720570293879,-47.52826014,0.00014981,20]
[331592601,1720570294009,-2356.12,0.00014981,20]
[331592602,1720570294132,-2356.12,0.00014981,20]
[331592603,1720570294261,-259.02173986,0.00014981,20]
[331592604,1720570294271,-2097.09826014,0.00014981,20]
[331592605,1720570294392,-2356.34263159,0.00014981,20]
[331592606,1720570294522,-695.33,0.00014981,20]
[331592607,1720570294643,-695.33,0.00014981,20]
[331592608,1720570294764,-695.33,0.00014981,20]
[331592609,1720570294887,-695.33,0.00014981,20]
[331592610,1720570295013,-695.39930043,0.00014981,20]
[331592611,1720570295146,-1717.24,0.00014981,20]
[331592612,1720570295265,-1717.24,0.00014981,20]
[331592613,1720570295401,-1717.24,0.00014981,20]
[331592614,1720570295517,-1717.24,0.00014981,20]
[331592615,1720570295632,-1717.24,0.00014981,20]
[331592616,1720570295752,-1717.30071884,0.00014981,20]
[331592617,1720570295884,-1478.03,0.00014981,20]
[331592618,1720570296005,-1478.03,0.00014981,20]
[331592619,1720570296609,-1087.099089,0.00014981,20]
[331592620,1720570296622,-390.930911,0.00014981,20]
[331592621,1720570297688,-1478.03,0.00014981,20]
[331592622,1720570297895,-1478.03,0.00014981,20]
[331592623,1720570298033,-1478.06809014,0.00014981,20]
[331592624,1720570298181,-1153.25,0.00014981,20]
[331592625,1720570298368,-198.80099886,0.00014981,20]
[331592626,1720570298378,-391.66900114,0.00014981,20]
[331592627,1720570298543,-292.69099886,0.00014981,20]
[331592628,1720570298553,-1623.04900114,0.00014981,20]
[331592629,1720570298692,-559.0,0.00014981,20]
[331592630,1720570298839,-398.47099886,0.00014981,20]
[331592631,1720570298850,-754.77900114,0.00014981,20]
[331592632,1720570299043,-1153.25,0.00014981,20]
[331592633,1720570299187,-306.01099886,0.00014981,20]
[331592634,1720570299196,-847.23900114,0.00014981,20]
[331592635,1720570299329,-1153.25,0.00014981,20]
[331592636,1720570299490,-1153.31494592,0.00014981,20]
[331592637,1720570300125,-590.47,0.00014981,20]
[331592638,1720570300261,-590.47,0.00014981,20]
[331592639,1720570300391,-590.47,0.00014981,20]
[331592640,1720570300514,-8.02605294,0.00014981,20]
[331592641,1720570300524,-582.44394706,0.00014981,20]
[331592642,1720570300679,-590.56249502,0.00014981,20]
[331592643,1720570300813,-1915.74,0.00014981,20]
[331592644,1720570300952,-1133.67355792,0.00014981,20]
[331592645,1720570300962,-782.06644208,0.00014981,20]
[331592646,1720570301135,-1915.74,0.00014981,20]
[331592647,1720570301282,-984.45355792,0.00014981,20]
[331592648,1720570301292,-744.0,0.00014981,20]
[331592649,1720570301302,-187.28644208,0.00014981,20]
[331592650,1720570301421,-1915.85341074,0.00014981,20]
[331592651,1720570301555,-559.0,0.00014981,20]
[331592652,1720570301682,-559.0,0.00014981,20]
[331592653,1720570301801,-559.0,0.00014981,20]
[331592654,1720570301930,-559.0,0.00014981,20]
[331592655,1720570302108,-559.10611457,0.00014981,20]
[331592656,1720570302599,-2413.74,0.00014981,20]
[331592657,1720570302716,-2612.17,0.00014981,20]
[331592658,1720570302855,-1425.56,0.00014981,20]
[331592659,1720570303026,-2645.77,0.00014981,20]
[331592660,1720570303171,-514.37,0.00014981,20]
[331592661,1720570303334,-525.85,0.00014981,20]
[331592662,1720570303453,-682.26,0.00014981,20]
[331592663,1720570304076,-1921.64,0.00014981,20]
[331592664,1720570304222,-1737.11,0.00014981,20]
[331592680,1720570834625,354.30399653,0.00010939,2]
[331592681,1720570834659,87.47600347,0.00010939,2]
[331593529,1720571228925,1203.9204216,0.00011199,2]
[331593530,1720571349197,305.75501762,0.00011199,2]
[331593531,1720571375628,304.65330378,0.00011199,2]
[331593532,1720571378185,419.69,0.00010873,2]
[331593535,1720571433085,-250.0,0.00012756,2]
[331593536,1720571433096,-616.41,0.00012762,2]
[331593538,1720571433106,-20.58,0.00012841,2]
[331593539,1720571433119,-135.7,0.00012841,2]
[331593541,1720571433129,-250.0,0.00012845,2]
[331593543,1720571433138,-614.27,0.00012941,2]
[331593544,1720571433150,-1688.687,0.00012941,2]
[331593550,1720571438460,-750.64098427,0.00012941,2]
[331593551,1720571438471,-152.69,0.00012941,2]
[331593552,1720571438482,-1000.0,0.00012945,2]
[331593553,1720571438491,-748.9832627,0.00013128,2]
[331593554,1720571438627,-2790.75,0.00013128,2]
[331593803,1720571445637,-1460.2667373,0.00013128,2]
[331593804,1720571445647,-150.99,0.00013128,2]
[331593805,1720571445656,-419.69,0.00013137,2]
[331593806,1720571445666,-304.55324922,0.00013179,2]
[331593807,1720571445675,-300.0,0.000132,4]
[331593808,1720571445685,-600.0,0.000133,4]
[331593809,1720571445695,-1000.0,0.000134,4]
[331593810,1720571445704,-6649.0,0.00013443,2]
[331593811,1720571445716,-1003.34617786,0.000135,4]
[331593817,1720571447090,-296.65382214,0.000135,4]
[331593818,1720571447102,-156.28,0.0001351,2]
[331593819,1720571447112,-305.75501762,0.00013574,2]
[331593820,1720571447122,-193.04571457,0.00013574,2]
[331593821,1720571447148,-1150.22637541,0.00013574,2]
[331593822,1720571447158,-1600.0,0.000136,4]
[331593823,1720571447167,-419.26,0.000137,2]
[331593824,1720571447177,-666.33,0.000137,2]
[331593825,1720571447187,-150.0,0.000137,2]
[331593826,1720571447197,-151.73,0.000137,2]
[331593827,1720571447206,-355.03,0.000137,2]
[331593828,1720571447216,-150.0,0.000137,2]
[331593829,1720571447225,-419.36,0.000137,2]
[331593830,1720571447235,-300.0,0.000137,5]
[331593831,1720571447244,-229.06362459,0.00013779,2]
[331593832,1720571447272,-171.56072004,0.00013779,2]
[331593833,1720571447282,-3617.68835904,0.00013798,2]
[331593834,1720571447298,-24700.22764096,0.00013798,2]
[331593835,1720571447307,-13142.7856,0.00013798,2]
[331593836,1720571447316,-300.0,0.000138,5]
[331593837,1720571447325,-3078.69528424,0.00013849,2]
[331593838,1720571447334,-500.0,0.00013885,2]
[331593839,1720571447343,-220.42,0.0001389,2]
[331593840,1720571447353,-212.39848525,0.00013894,2]
[331593841,1720571447363,-321.4005033,0.00013894,2]
[331593842,1720571447372,-701.5384,0.00013895,2]
[331593843,1720571447381,-532.7598,0.00013895,2]
[331593844,1720571447390,-179.28516623,0.00013897,2]
[331593845,1720571447399,-300.0,0.000139,5]
[331593846,1720571447408,-419.26,0.00013918,2]
[331593847,1720571447418,-212.39848523,0.00013931,2]
[331593848,1720571447427,-164.99,0.00013943,2]
[331593849,1720571447436,-212.39848523,0.00013968,2]
[331593850,1720571447446,-2425.29,0.00013993,2]
[331593851,1720571447455,-500.0,0.00013993,2]
[331593852,1720571447467,-625.41,0.00013993,2]
[331593853,1720571447477,-2394.49,0.00013993,2]
[331593854,1720571447487,-1270.03,0.00013993,2]
[331593855,1720571447497,-574.38,0.00013993,2]
[331593856,1720571447507,-2795.33387278,0.00013993,2]
[331593857,1720571447521,-742.48612722,0.00013993,2]
[331593858,1720571447531,-2275.25,0.00013993,2]
[331593859,1720571447542,-812.37,0.00013993,2]
[331593860,1720571447551,-5716.36,0.00013993,2]
[331593861,1720571447560,-1629.51183304,0.00013993,2]
[331593862,1720571447571,-382.46709526,0.00013993,2]
[331593863,1720571447582,-79.8010717,0.00013993,2]
[331593864,1720571447591,-500.0,0.00013993,2]
[331593865,1720571447600,-128.07264527,0.00013993,2]
[331593867,1720571799468,250.0,0.0001,2]
[331593868,1720571799496,1293.97863229,0.0001,2]
[331593869,1720571922517,399.8,0.00011026,2]
[331593870,1720572148701,529.13407162,0.00011199,2]
[331593871,1720572349547,155.0,0.00011199,2]
[331593876,1720572514966,-300.0,0.00011799,2]
[331593877,1720572514997,-5549.41976496,0.000118,2]
[331593878,1720572515053,-345.9701559,0.000118,2]
[331593879,1720572515092,-5196.1276119,0.000118,2]
[331593880,1720572515123,-152.69,0.00012797,2]
[331593881,1720572515154,-250.0,0.00012808,2]
[331593882,1720572515183,-250.0,0.0001286,2]
[331593883,1720572515214,-0.60215306,0.00012955,2]
[331593884,1720572522793,379.81,0.00010952,2]
[331593887,1720572588936,-159.68599667,0.00012861,2]
[331593888,1720572588972,-171.05,0.00012961,2]
[331593889,1720572589003,-1000.0,0.00012992,2]
[331593890,1720572589034,-4644.57406113,0.00013128,2]
[331593899,1720572631514,-177.4591758,0.00012314,2]
[331593900,1720572631523,-122.5308242,0.00013128,2]
[331593901,1720572631535,-232.89511467,0.00013128,2]
[331593902,1720572631544,-379.81,0.00013216,2]
[331593903,1720572631553,-150.0,0.0001326,2]
[331593904,1720572631562,-26.94488533,0.00013324,2]
[331593905,1720572631573,-150.84186167,0.00013324,2]
[331593906,1720572631582,-260.25415435,0.00013472,2]
[331593907,1720572631592,-29.98931784,0.00013574,2]
[331593908,1720572631842,-429.8742519,0.00013574,2]
[331593909,1720572631855,-40.12643026,0.00013574,2]
[331593910,1720572631865,-5204.24120352,0.0001358,2]
[331593912,1720572631874,-354.98,0.000136,2]
[331593914,1720572631883,-528.66,0.000136,2]
[331593915,1720572631893,-250.60377002,0.00013793,2]
[331593916,1720572631906,-165.19882189,0.00013799,2]
[331593917,1720572632426,-22.22587025,0.0001383,2]
[331593918,1720572633119,-277.77412975,0.0001383,2]
[331593919,1720572633131,-165.19882184,0.00013839,2]
[331593920,1720572633144,-5445.1710432,0.00013873,2]
[331593921,1720572633156,-9417.06768576,0.00013873,2]
[331593922,1720572633168,-81803.72047104,0.00013873,2]
[331593923,1720572633178,-332.9724,0.00013873,2]
[331593924,1720572633188,-14729.256,0.00013873,2]
[331593925,1720572633197,-14560.64999112,0.0001388,2]
[331593926,1720572633210,-9657.36619006,0.0001388,2]
[331593927,1720572633220,-177.65772177,0.00013883,2]
[331593928,1720572633230,-2817.06466371,0.00013884,2]
[331593929,1720572633240,-500.0,0.00013885,2]
[331593930,1720572633250,-1723.41,0.00013891,2]
[331593931,1720572633259,-1677.45,0.00013891,2]
[331593932,1720572633269,-2324.23,0.00013891,2]
[331593933,1720572633278,-500.0,0.00013891,2]
[331593934,1720572633289,-188.95,0.00013891,2]
[331593935,1720572633298,-1217.12,0.00013891,2]
[331593936,1720572633308,-3390.41,0.00013891,2]
[331593937,1720572633317,-778.52,0.00013891,2]
[331593938,1720572633327,-2004.62,0.00013891,2]
[331593939,1720572633338,-500.0,0.00013891,2]
[331593940,1720572633347,-1723.33,0.00013891,2]
[331593941,1720572633357,-56319.68899147,0.00013891,2]
[331593942,1720572633366,-500.0,0.00013891,2]
[331593943,1720572633376,-1850.49,0.00013891,2]
[331593944,1720572633385,-500.0,0.00013891,2]
[331593945,1720572633395,-500.0,0.00013891,2]
[331593946,1720572633405,-500.0,0.00013891,2]
[331593947,1720572633415,-2365.48,0.00013891,2]
[331593948,1720572633424,-500.0,0.00013891,2]
[331593949,1720572633434,-627.33,0.00013891,2]
[331593950,1720572633443,-1363.56,0.00013892,2]
[331593951,1720572633453,-500.0,0.00013892,2]
[331593952,1720572633463,-2012.34,0.00013892,2]
[331593953,1720572633472,-500.0,0.00013892,2]
[331593954,1720572633483,-500.0,0.00013892,2]
[331593955,1720572633492,-500.0,0.00013892,2]
[331593956,1720572633502,-809.35,0.00013892,2]
[331593957,1720572633511,-500.0,0.00013892,2]
[331593958,1720572633522,-598.76,0.00013892,2]
[331593959,1720572633531,-1663.03,0.00013892,2]
[331593960,1720572633541,-500.0,0.00013892,2]
[331593961,1720572633551,-2946.74013014,0.00013892,2]
[331593962,1720572633561,-500.0,0.00013892,2]
[331593963,1720572633570,-2513.07,0.00013892,2]
[331593964,1720572633580,-1031.0,0.00013892,2]
[331593965,1720572633589,-1930.17,0.00013892,2]
[331593966,1720572633599,-500.0,0.00013892,2]
[331593967,1720572633609,-1150.06,0.00013892,2]
[331593968,1720572633618,-500.0,0.00013892,2]
[331593969,1720572633628,-165.73977734,0.00013892,2]
[331593970,1720572633638,-500.0,0.00013892,2]
[331593971,1720572633647,-2491.32,0.00013892,2]
[331593972,1720572633657,-500.0,0.00013892,2]
[331593973,1720572633667,-500.0,0.00013892,2]
[331593974,1720572633676,-1776.51,0.00013892,2]
[331593975,1720572633685,-500.0,0.00013892,2]
[331593976,1720572633695,-1267.46,0.00013892,2]
[331593977,1720572633705,-1441.05,0.00013892,2]
[331593978,1720572633714,-1805.22,0.00013892,2]
[331593979,1720572633724,-1112.99,0.00013892,2]
[331593980,1720572633734,-718.8,0.00013892,2]
[331593981,1720572633744,-3051.87,0.00013892,2]
[331593982,1720572633754,-1885.34,0.00013892,2]
[331593983,1720572633764,-652.86,0.00013892,2]
[331593984,1720572633774,-721.03,0.00013892,2]
[331593985,1720572633784,-1697.96,0.00013892,2]
[331593986,1720572633793,-20420.42,0.00013892,2]
[331593987,1720572633803,-500.0,0.00013892,2]
[331593988,1720572633813,-2695.37,0.00013892,2]
[331593989,1720572633822,-500.0,0.00013892,2]
[331593990,1720572633832,-557.08,0.00013892,2]
[331593991,1720572633843,-4522.14,0.00013892,2]
[331593992,1720572633852,-1727.33,0.00013892,2]
[331593993,1720572633863,-1416.77,0.00013892,2]
[331593994,1720572633873,-500.0,0.00013892,2]
[331593995,1720572633883,-500.0,0.00013892,2]
[331593996,1720572633892,-500.0,0.00013892,2]
[331593997,1720572633902,-500.0,0.00013892,2]
[331593998,1720572633912,-2503.02,0.00013892,2]
[331593999,1720572633922,-1304.38,0.00013892,2]
[331594000,1720572633932,-1808.42,0.00013892,2]
[331594001,1720572633942,-4768.79,0.00013892,2]
[331594002,1720572633953,-2500.87,0.00013892,2]
[331594003,1720572633963,-500.0,0.00013892,2]
[331594004,1720572633973,-500.0,0.00013892,2]
[331594005,1720572633983,-500.0,0.00013892,2]
[331594006,1720572633993,-645.33,0.00013892,2]
[331594007,1720572634004,-2152.59,0.00013892,2]
[331594008,1720572634014,-562.14,0.00013892,2]
[331594009,1720572634024,-518.55,0.00013892,2]
[331594010,1720572634033,-602.11,0.00013892,2]
[331594011,1720572634043,-1306.76,0.00013892,2]
[331594012,1720572634052,-3150.76,0.00013892,2]
[331594013,1720572634062,-568.27,0.00013892,2]
[331594014,1720572634072,-741.12,0.00013892,2]
[331594015,1720572634081,-1442.16,0.00013892,2]
[331594016,1720572634091,-1018.73,0.00013892,2]
[331594017,1720572634100,-1161.78,0.00013892,2]
[331594018,1720572634109,-1103.5,0.00013892,2]
[331594019,1720572634119,-500.0,0.00013892,2]
[331594020,1720572634128,-500.0,0.00013892,2]
[331594021,1720572634137,-810.78,0.00013892,2]
[331594022,1720572634147,-2294.72,0.00013892,2]
[331594023,1720572634155,-500.0,0.00013892,2]
[331594024,1720572634165,-1592.36,0.00013892,2]
[331594025,1720572634174,-500.0,0.00013892,2]
[331594026,1720572634183,-1761.51,0.00013892,2]
[331594027,1720572634193,-1295.65,0.00013892,2]
[331594028,1720572634203,-550.45,0.00013892,2]
[331594029,1720572634212,-500.0,0.00013892,2]
[331594030,1720572634221,-500.0,0.00013892,2]
[331594031,1720572634231,-1464.13,0.00013892,2]
[331594032,1720572634240,-5244.74,0.00013892,2]
[331594033,1720572634250,-786.76,0.00013892,2]
[331594034,1720572634260,-1710.71,0.00013892,2]
[331594035,1720572634270,-593.63,0.00013892,2]
[331594036,1720572634280,-3099.96,0.00013892,2]
[331594037,1720572634291,-500.0,0.00013892,2]
[331594038,1720572634302,-779.8,0.00013892,2]
[331594039,1720572634311,-500.0,0.00013892,2]
[331594040,1720572634322,-556.51,0.00013892,2]
[331594041,1720572634334,-826.52,0.00013892,2]
[331594042,1720572634344,-2180.45,0.00013892,2]
[331594043,1720572634354,-500.0,0.00013892,2]
[331594044,1720572634363,-3549.3,0.00013892,2]
[331594045,1720572634375,-717.67,0.00013892,2]
[331594046,1720572634391,-526.06,0.00013892,2]
[331594047,1720572634401,-500.0,0.00013892,2]
[331594048,1720572634412,-5478.18,0.00013892,2]
[331594049,1720572634424,-2842.53,0.00013892,2]
[331594050,1720572634435,-500.0,0.00013892,2]
[331594051,1720572634446,-516.85,0.00013892,2]
[331594052,1720572634458,-1861.91,0.00013892,2]
[331594053,1720572634468,-824.75,0.00013892,2]
[331594054,1720572634478,-1111.28,0.00013892,2]
[331594055,1720572634489,-500.0,0.00013892,2]
[331594056,1720572634501,-652.25,0.00013892,2]
[331594057,1720572634511,-2470.06,0.00013892,2]
[331594058,1720572634521,-726.22,0.00013892,2]
[331594059,1720572634534,-500.0,0.00013892,2]
[331594060,1720572634545,-2809.78,0.00013892,2]
[331594061,1720572634556,-676.51,0.00013892,2]
[331594062,1720572634566,-500.0,0.00013892,2]
[331594063,1720572634577,-1008.26,0.00013892,2]
[331594064,1720572634587,-959.38,0.00013892,2]
[331594065,1720572634599,-850.47,0.00013892,2]